bitfinex-derivatives/quotes_SOLF0:USTF0_20240925
["timestamp","ask_amount","ask_price","bid_price","bid_amount"]
[1727276315276,3.2907,151.95,151.91,3.2913]
[1727276315667,14.23,151.97,151.88,14.23]
[1727276315872,1.2883,152.01,151.86,14.23]
[1727276315873,14.23,151.95,151.86,14.23]
[1727276316271,3.2916,151.91,151.88,3.2921]
[1727276317279,3.2914,151.92,151.89,3.2919]
[1727276317878,3.2914,151.92,151.88,3.2921]
[1727276318181,14.23,151.92,151.84,15.508]
[1727276318379,15.5588,151.94,151.87,3.2923]
[1727276318574,15.5588,151.94,151.84,15.508]
[1727276318575,3.2917,151.91,151.84,15.508]
[1727276319477,15.5588,151.94,151.84,15.508]
[1727276319867,15.5588,151.94,151.81,1.3215]
[1727276319868,14.23,151.9,151.81,1.3215]
[1727276320072,17.55949157,151.9,151.83,3.2931]
[1727276320585,3.2927,151.86,151.83,3.2931]
[1727276320774,14.23,151.88,151.82,3.2934]
[1727276321176,3.32949157,151.9,151.8,14.23]
[1727276321377,14.23,151.91,151.84,3.293]
[1727276322677,1.3288,151.94,151.8,14.23]
[1727276322981,14.23,151.87,151.79,1.2759]
[1727276323280,3.293,151.85,151.82,3.2933]
[1727276323482,17.47714636,151.87,151.79,1.2759]
[1727276323876,3.2932,151.84,151.81,3.2936]
[1727276324077,3.2932,151.84,151.79,1.2759]
[1727276324078,17.47714636,151.87,151.79,1.2759]
[1727276324686,14.23,151.86,151.79,1.2759]
[1727276324876,1.3117,151.86,151.68,69.38137768]
[1727276325077,14.23,151.8,151.71,15.6044]
[1727276325589,3.2948,151.77,151.73,3.2954]
[1727276326076,3.2944,151.78,151.71,15.6044]
[1727276327081,3.2947,151.77,151.71,15.6044]
[1727276327378,3.2948,151.76,151.71,1.3744]
[1727276327600,14.23,151.79,151.7,14.23]
[1727276328080,3.295,151.75,151.72,3.2955]
[1727276328281,3.29202373,151.76,151.72,3.2955]
[1727276328484,14.23,151.79,151.72,3.2955]
[1727276328684,3.2949,151.76,151.72,3.2955]
[1727276328987,3.26796308,151.78,151.71,14.23]
[1727276329181,14.23,151.81,151.71,14.23]
[1727276329479,14.23,151.81,151.74,3.2951]
[1727276329984,14.23,151.79,151.69,16.9061]
[1727276330278,1.2652,151.78,151.69,16.9061]
[1727276330484,4.50206465,151.78,151.69,16.9061]
[1727276330685,3.295,151.75,151.72,3.2955]
[1727276330985,4.50206465,151.78,151.69,16.9061]
[1727276331282,3.2947,151.77,151.69,16.9061]
[1727276331980,3.2947,151.77,151.73,3.2952]
[1727276332586,3.2947,151.77,151.74,3.2952]
[1727276333279,1.2688,151.85,151.73,14.23]
[1727276333473,14.23,151.82,151.73,14.23]
[1727276333879,3.2941,151.8,151.73,14.23]
[1727276334584,14.23,151.82,151.77,3.2944]
[1727276334980,14.23,151.82,151.73,14.23]
[1727276335283,15.5925,151.84,151.75,14.23]
[1727276336181,3.2937,151.81,151.75,14.23]
[1727276336482,15.5925,151.84,151.75,14.23]
[1727276336885,3.2939,151.81,151.77,3.2945]
[1727276337081,3.2939,151.81,151.75,14.23]
[1727276337386,3.2939,151.81,151.77,3.2945]
[1727276337688,3.2939,151.81,151.75,14.23]
[1727276338095,15.5925,151.84,151.75,14.23]
[1727276338585,3.2938,151.81,151.77,3.2944]
[1727276339383,3.2939,151.8,151.76,3.2947]
[1727276340085,3.2939,151.8,151.77,3.2946]
[1727276340292,3.2939,151.8,151.74,1.3335]
[1727276340685,3.2939,151.8,151.76,3.2947]
[1727276341087,3.2939,151.8,151.74,1.3335]
[1727276342792,3.2941,151.79,151.76,3.2947]
[1727276342993,3.2941,151.79,151.74,1.3335]
[1727276343691,15.5925,151.84,151.75,14.23]
[1727276344192,15.5925,151.84,151.76,1.3619]
[1727276344584,1.3625,151.84,151.77,14.23]
[1727276344793,17.53478996,151.86,151.79,14.23]
[1727276344794,3.30478996,151.86,151.79,14.23]
[1727276344986,2.5453,151.89,151.81,14.23]
[1727276345181,3.2925,151.87,151.84,3.2929]
[1727276345488,3.27777045,151.88,151.81,14.23]
[1727276345689,3.2926,151.86,151.81,14.23]
[1727276346489,3.2926,151.86,151.83,3.2932]
[1727276346689,3.2924,151.87,151.81,14.23]
[1727276346891,14.23,151.91,151.85,3.2927]
[1727276348491,3.2923,151.88,151.85,3.2927]
[1727276350389,3.2924,151.87,151.84,3.293]
[1727276350889,3.23945981,151.89,151.83,3.2932]
[1727276351094,14.23,151.89,151.83,3.2932]
[1727276351301,3.30928853,151.88,151.83,3.2932]
[1727276352394,14.23,151.89,151.83,3.2932]
[1727276352601,3.2928,151.86,151.83,3.2932]
[1727276352893,3.27338395,151.87,151.83,3.2932]
[1727276353097,3.2928,151.85,151.83,3.2932]
[1727276353396,3.2928,151.85,151.82,4.5843]
[1727276354192,3.2928,151.85,151.83,3.2932]
[1727276356085,6.56674278,151.86,151.83,3.2932]
[1727276356392,3.2927,151.86,151.83,3.2932]
[1727276356593,3.37199351,151.86,151.82,1.2909]
[1727276356896,14.23,151.91,151.82,1.2909]
[1727276357091,3.2923,151.88,151.82,1.2909]
[1727276357291,3.25997809,151.88,151.83,14.23]
[1727276357490,14.23,151.91,151.83,15.5943]
[1727276357693,3.2921,151.89,151.83,15.5943]
[1727276357890,3.21484246,151.88,151.83,15.5943]
[1727276358393,3.2919,151.9,151.83,15.5943]
[1727276358789,3.292,151.89,151.87,3.2923]
[1727276358994,3.292,151.89,151.83,15.5943]
[1727276359192,3.292,151.89,151.86,3.2925]
[1727276359593,6.60224888,151.88,151.86,3.2925]
[1727276359789,6.60224888,151.88,151.85,3.2927]
[1727276360194,3.2924,151.87,151.85,3.2927]
[1727276360391,3.2924,151.87,151.84,3.2929]
[1727276360595,3.2924,151.87,151.83,15.5943]
[1727276360895,6.60214888,151.88,151.85,3.2927]
[1727276361091,3.2922,151.88,151.83,15.5943]
[1727276361292,3.2919,151.9,151.83,15.5943]
[1727276361494,6.59525968,151.9,151.83,15.5943]
[1727276361698,16.906,151.94,151.84,14.23]
[1727276361900,3.2916,151.91,151.84,14.23]
[1727276362197,14.23,151.96,151.88,14.23]
[1727276362404,3.2914,151.92,151.87,14.23]
[1727276362594,3.2914,151.92,151.89,9.11]
[1727276362788,3.2914,151.92,151.89,12.4018]
[1727276363193,9.11,151.9,151.86,9.11]
[1727276363503,9.11,151.9,151.87,9.11]
[1727276363706,3.2917,151.91,151.87,9.11]
[1727276364192,12.4014,151.92,151.88,9.11]
[1727276364399,14.24,151.95,151.86,14.24]
[1727276364696,110.68863603,151.97,151.88,14.24]
[1727276364896,3.2911,151.93,151.9,3.2916]
[1727276365998,3.2911,151.93,151.91,3.2915]
[1727276366500,3.291,151.94,151.91,3.2915]
[1727276366799,96.44863603,151.97,151.9,14.24]
[1727276367093,36.1991,152.18,151.92,14.24]
[1727276367094,14.24,152.02,151.92,14.24]
[1727276367294,14.24,152.02,151.96,3.2904]
[1727276367799,17.59154707,152.02,151.96,3.2904]
[1727276368194,3.2899,151.99,151.96,3.2904]
[1727276368396,2.741,152.05,151.97,3.29]
[1727276368590,2.741,152.05,151.94,14.24]
[1727276368591,14.24,152.03,151.94,14.24]
[1727276368999,3.2896,152.0,151.96,3.2904]
[1727276369295,3.26069782,151.99,151.9,2.769]
[1727276369501,14.24,152.01,151.91,14.24]
[1727276369701,3.2901,151.98,151.94,3.2907]
[1727276370898,3.2898,151.99,151.95,3.2906]
[1727276372007,3.24226464,152.0,151.78,6.5884]
[1727276372243,3.24226464,152.0,151.87,14.24]
[1727276372244,14.24,151.97,151.87,14.24]
[1727276372394,14.24,151.99,151.9,14.24]
[1727276372594,3.32335251,152.0,151.92,14.24]
[1727276372799,14.24,152.02,151.92,14.24]
[1727276373102,3.29,151.99,151.95,3.2905]
[1727276373610,3.2897,152.0,151.96,3.2902]
[1727276374101,3.24698387,152.01,151.95,1.2698]
[1727276374308,14.24,152.04,151.95,1.2698]
[1727276374605,0.98247207,152.03,151.95,1.2698]
[1727276374804,3.29,151.99,151.95,4.5604]
[1727276375795,3.29,151.99,151.96,3.2904]
[1727276375993,3.29,151.99,151.95,1.2698]
[1727276376908,14.24,152.03,151.95,1.2698]
[1727276377299,3.2895,152.01,151.97,3.2902]
[1727276377493,3.22109616,152.02,151.97,3.2902]
[1727276377703,3.22109616,152.02,151.95,1.2698]
[1727276377704,17.46109616,152.02,151.96,3.2904]
[1727276377902,3.2901,151.98,151.95,1.2698]
[1727276378204,14.24,151.97,151.93,3.291]
[1727276378406,14.24,151.97,151.9,2.6532]
[1727276379004,3.2906,151.96,151.92,3.2912]
[1727276379204,3.2906,151.96,151.9,2.6532]
[1727276379700,14.24,152.0,151.9,16.8932]
[1727276380008,32.36357301,152.07,151.9,2.6532]
[1727276380202,3.2905,151.96,151.9,2.6532]
[1727276380402,14.24,151.98,151.9,2.6532]
[1727276380708,3.2906,151.96,151.92,3.2912]
[1727276380901,3.2906,151.96,151.9,2.6532]
[1727276381401,3.2907,151.95,151.9,2.6532]
[1727276381704,14.24,151.97,151.9,2.6532]
[1727276382303,17.4835813,151.97,151.9,2.6532]
[1727276382805,3.2907,151.95,151.91,3.2914]
[1727276383001,17.4835813,151.97,151.9,2.6532]
[1727276383404,17.4835813,151.97,151.91,3.2914]
[1727276384106,3.2913,151.92,151.9,1.3869]
[1727276384415,1.2789,151.99,151.9,1.3869]
[1727276384416,14.24,151.94,151.9,1.3869]
[1727276384909,3.2914,151.92,151.9,1.3869]
[1727276385402,3.2917,151.91,151.88,3.2921]
[1727276385703,3.23313866,151.97,151.86,1.2716]
[1727276385704,14.24,151.92,151.86,1.2716]
[1727276385903,14.24,151.92,151.86,3.2925]
[1727276385904,3.2921,151.89,151.86,3.2925]
[1727276386113,3.2921,151.89,151.84,1.3885]
[1727276386114,14.24,151.91,151.84,1.3885]
[1727276387311,3.2918,151.9,151.87,3.2923]
[1727276387516,14.24,151.91,151.8,14.24]
[1727276387712,14.24,151.91,151.81,1.3041]
[1727276387901,3.292,151.89,151.81,1.3041]
[1727276388407,3.2919,151.9,151.86,3.2925]
[1727276388710,3.2919,151.9,151.81,1.3041]
[1727276388897,3.2919,151.9,151.86,3.2924]
[1727276390009,3.292,151.89,151.86,3.2924]
[1727276390410,3.3342154,151.92,151.81,1.3041]
[1727276390606,14.24,151.89,151.81,1.3041]
[1727276391008,17.532,151.89,151.81,1.3041]
[1727276391609,17.532,151.89,151.85,3.2926]
[1727276392211,17.532,151.89,151.81,1.3041]
[1727276392809,17.532,151.89,151.86,3.2926]
[1727276393611,3.2922,151.88,151.86,3.2926]
[1727276394513,9.11,151.87,151.86,3.2926]
[1727276394714,9.11,151.87,151.81,10.4141]
[1727276395010,12.4024,151.87,151.81,10.4141]
[1727276395211,9.11,151.85,151.81,10.4141]
[1727276395507,9.11,151.86,151.81,10.4141]
[1727276396208,3.25878981,151.9,151.81,10.4141]
[1727276396417,9.11,151.86,151.85,3.2927]
[1727276397213,9.11,151.86,151.84,3.2929]
[1727276398819,3.2925,151.87,151.84,3.2929]
[1727276399114,9.11,151.86,151.84,3.2929]
[1727276399309,9.11,151.86,151.85,3.2928]
[1727276399710,9.11,151.86,151.81,10.4141]
[1727276399916,9.11,151.86,151.84,3.2929]
[1727276400714,3.21211301,151.89,151.85,3.2928]
[1727276400715,3.2923,151.88,151.85,3.2928]
[1727276401019,12.4023,151.88,151.85,3.2928]
[1727276401215,9.86257626,151.98,151.84,9.11]
[1727276401419,0.98307166,151.97,151.86,9.11]
[1727276401615,9.11,151.9,151.85,9.11]
[1727276401819,9.11,151.9,151.88,3.2921]
[1727276402116,9.11,151.89,151.88,3.2921]
[1727276402707,3.28217626,151.98,151.88,9.11]
[1727276402911,9.11,151.95,151.89,10.4586]
[1727276403210,9.11,151.94,151.89,10.4586]
[1727276403408,9.11,151.94,151.92,3.2912]
[1727276404217,9.11,151.94,151.91,3.2915]
[1727276404408,17.4948464,151.96,151.89,1.3486]
[1727276404609,14.23,151.96,151.89,1.3486]
[1727276404810,14.23,151.96,151.91,3.2914]
[1727276405213,17.48661431,151.96,151.89,1.3486]
[1727276405735,14.23,151.96,151.89,1.3486]
[1727276405916,14.23,151.96,151.93,3.2909]
[1727276406119,14.23,151.98,151.93,3.2909]
[1727276406415,16.8682,151.99,151.9,14.23]
[1727276406820,3.2902,151.98,151.9,14.23]
[1727276407014,15.5089,151.99,151.95,3.2905]
[1727276407210,15.5089,151.99,151.9,14.23]
[1727276407522,15.5089,151.99,151.95,3.2906]
[1727276408021,3.2902,151.98,151.9,14.23]
[1727276408224,3.2902,151.98,151.94,3.2907]
[1727276409122,3.2902,151.98,151.95,3.2906]
[1727276409316,3.2899,151.99,151.9,14.23]
[1727276409521,3.2899,151.99,151.89,4.57976934]
[1727276409522,1.3907,152.04,151.92,14.23]
[1727276409819,3.2897,152.0,151.97,3.2901]
[1727276410318,14.23,152.0,151.93,1.2823]
[1727276410521,14.23,151.98,151.89,2.6309]
[1727276410715,3.3135883,151.97,151.92,3.2912]
[1727276410914,14.23,151.96,151.89,2.6309]
[1727276411113,19.78,152.03,151.89,2.6309]
[1727276411114,3.27343157,151.97,151.89,2.6309]
[1727276411325,14.23,151.95,151.89,2.6309]
[1727276411516,3.22965416,151.94,151.89,2.6309]
[1727276411722,14.23,151.95,151.89,1.3486]
[1727276411922,3.2760648,151.95,151.89,1.3486]
[1727276412115,14.23,151.93,151.83,14.23]
[1727276412324,1.3907,151.98,151.83,1.3533]
[1727276412525,14.23,151.91,151.83,1.3533]
[1727276412720,14.23,151.93,151.83,15.5833]
[1727276412919,3.2909,151.95,151.85,14.23]
[1727276413316,3.2909,151.95,151.87,14.23]
[1727276413515,3.2905,151.96,151.87,14.23]
[1727276413723,1.3907,151.98,151.89,14.23]
[1727276413928,14.23,152.01,151.94,3.2909]
[1727276414129,3.2901,151.98,151.91,14.23]
[1727276414320,14.23,151.98,151.9,1.4007]
[1727276414517,14.23,152.01,151.91,14.23]
[1727276415221,3.2898,152.0,151.91,14.23]
[1727276415642,14.23,152.01,151.91,14.23]
[1727276415828,3.2898,152.0,151.91,14.23]
[1727276416223,3.2898,152.0,151.96,3.2903]
[1727276416526,3.2898,151.99,151.91,14.23]
[1727276416723,14.23,152.01,151.96,3.2903]
[1727276416923,14.23,152.02,151.93,14.23]
[1727276417125,3.2897,152.0,151.93,14.23]
[1727276417325,14.23,152.02,151.96,3.2903]
[1727276417926,3.29,151.99,151.96,3.2903]
[1727276418726,3.2897,152.0,151.97,3.2902]
[1727276419734,14.23,152.01,151.96,3.2904]
[1727276420334,3.2899,151.99,151.96,3.2904]
[1727276420531,3.2899,151.99,151.97,3.2902]
[1727276420736,3.2899,151.99,151.94,1.2828]
[1727276420930,14.23,152.01,151.93,14.23]
[1727276421231,14.23,152.01,151.95,3.2906]
[1727276421435,14.23,152.01,151.91,14.23]
[1727276421646,25.65302123,152.05,151.93,3.291]
[1727276421937,14.23,151.98,151.9,1.4007]
[1727276422138,14.23,151.96,151.91,3.2915]
[1727276422345,17.55862031,151.96,151.85,14.23]
[1727276422543,3.2917,151.91,151.88,3.292]
[1727276422736,14.23,151.94,151.85,14.23]
[1727276422937,17.54171587,151.94,151.85,14.23]
[1727276423335,3.2912,151.93,151.85,14.23]
[1727276424040,17.521,151.94,151.85,14.23]
[1727276424243,14.23,151.94,151.85,14.23]
[1727276424438,14.23,151.92,151.83,14.23]
[1727276424644,14.23,151.92,151.82,4.03]
[1727276424841,3.2922,151.88,151.82,4.03]
[1727276425039,3.2922,151.88,151.75,6.5899]
[1727276425040,14.23,151.88,151.78,14.23]
[1727276425238,3.293,151.85,151.78,16.9821]
[1727276425742,3.2926,151.87,151.78,16.9821]
[1727276425950,14.23,151.88,151.78,16.9821]
[1727276426346,3.2926,151.86,151.78,16.9821]
[1727276426537,14.23,151.88,151.78,16.9821]
[1727276427240,14.23,151.86,151.78,2.7521]
[1727276428043,3.2931,151.84,151.8,3.2939]
[1727276428339,14.23,151.86,151.78,16.9821]
[1727276428544,3.2921,151.89,151.85,3.2927]
[1727276428751,14.23,151.91,151.85,3.2927]
[1727276429150,3.2922,151.88,151.85,3.2927]
[1727276429351,14.23,151.91,151.86,3.2926]
[1727276429645,14.23,151.91,151.82,14.23]
[1727276429843,1.3559,151.92,151.83,14.23]
[1727276430444,14.23,151.91,151.79,1.318]
[1727276430749,14.23,151.91,151.81,14.23]
[1727276430955,3.2921,151.89,151.81,14.23]
[1727276431444,3.2921,151.89,151.85,3.2927]
[1727276431943,14.23,151.91,151.81,14.23]
[1727276433453,3.2921,151.89,151.85,3.2927]
[1727276433648,14.23,151.91,151.83,14.23]
[1727276433855,1.3559,151.92,151.83,14.23]
[1727276434055,14.23,151.91,151.85,3.2928]
[1727276434650,14.23,151.89,151.79,15.6258]
[1727276435251,14.23,151.87,151.79,1.3958]
[1727276435852,3.293,151.85,151.81,3.2935]
[1727276436756,3.293,151.85,151.82,3.2935]
[1727276437157,1.2718,151.91,151.79,15.6258]
[1727276437158,14.23,151.89,151.79,15.6258]
[1727276438155,14.23,151.91,151.81,14.23]
[1727276438652,3.292,151.89,151.81,14.23]
[1727276439067,15.5859,151.92,151.83,14.23]
[1727276439547,15.5859,151.92,151.86,3.2926]
[1727276439960,15.5859,151.92,151.83,14.23]
[1727276441260,3.2918,151.9,151.83,14.23]
[1727276441853,23.09840282,152.02,151.89,3.2918]
[1727276442056,14.23,151.94,151.83,14.23]
[1727276442266,14.23,151.92,151.83,14.23]
[1727276442559,3.2919,151.9,151.83,14.23]
[1727276443155,3.2919,151.9,151.84,1.283]
[1727276443559,3.292,151.89,151.86,3.2925]
[1727276444464,3.2918,151.9,151.86,3.2925]
[1727276445061,17.4850673,151.92,151.86,3.2925]
[1727276445255,3.2550673,151.92,151.87,3.2924]
[1727276445459,14.23,151.94,151.85,14.23]
[1727276445660,14.23,151.94,151.85,15.5483]
[1727276445850,3.2915,151.92,151.85,15.5483]
[1727276446051,3.34387647,151.94,151.87,14.23]
[1727276446265,14.23,151.96,151.87,14.23]
[1727276446451,3.2914,151.92,151.89,3.2918]
[1727276447852,3.2916,151.91,151.88,3.2921]
[1727276448256,14.23,151.93,151.88,3.2921]
[1727276448462,14.23,151.93,151.87,3.2923]
[1727276448663,17.4927593,151.93,151.85,1.3183]
[1727276449058,3.2917,151.91,151.88,3.2921]
[1727276449458,17.4927593,151.93,151.88,3.2921]
[1727276450261,3.2917,151.91,151.88,3.2921]
[1727276450955,14.23,151.91,151.87,3.2923]
[1727276451466,3.2921,151.89,151.86,3.2925]
[1727276451759,14.23,151.9,151.84,1.283]
[1727276452060,14.23,151.88,151.84,1.283]
[1727276452760,3.2925,151.87,151.84,4.576]
[1727276453459,14.23,151.88,151.79,2.6785]
[1727276453665,14.23,151.86,151.79,4.0639]
[1727276453959,14.23,151.85,151.79,1.3854]
[1727276454166,14.23,151.85,151.8,3.2938]
[1727276454666,17.53720725,151.85,151.8,3.2938]
[1727276454861,3.2934,151.83,151.8,3.2938]
[1727276455461,3.2937,151.81,151.78,3.2942]
[1727276455665,14.23,151.83,151.75,2.6681]
[1727276456166,3.2939,151.81,151.77,3.2944]
[1727276456763,3.2939,151.81,151.75,2.6681]
[1727276456764,3.2939,151.81,151.78,3.2944]
[1727276458464,3.2939,151.8,151.77,3.2945]
[1727276458866,14.23,151.83,151.75,1.3854]
[1727276459865,3.2942,151.79,151.76,3.2947]
[1727276460668,3.2944,151.78,151.75,4.6803]
[1727276460871,14.23,151.79,151.72,1.3545]
[1727276461369,14.23,151.79,151.74,3.2952]
[1727276461610,14.23,151.77,151.7,1.3893]
[1727276461866,3.2952,151.75,151.7,1.3893]
[1727276462062,14.23,151.73,151.66,1.2676]
[1727276462270,3.27972419,151.75,151.66,1.2676]
[1727276462461,3.2959,151.72,151.68,3.2963]
[1727276462865,14.23,151.73,151.68,3.2963]
[1727276463165,1.3115,151.76,151.66,1.2676]
[1727276463366,1.3115,151.76,151.68,14.23]
[1727276463668,1.3115,151.76,151.72,3.2955]
[1727276463875,1.3115,151.76,151.68,14.23]
[1727276464668,3.295,151.75,151.71,3.2957]
[1727276464872,3.295,151.75,151.68,14.23]
[1727276465062,3.295,151.75,151.71,3.2957]
[1727276465265,4.6064,151.76,151.68,14.23]
[1727276465866,3.295,151.75,151.68,14.23]
[1727276466071,1.3115,151.76,151.68,14.23]
[1727276466475,4.6065,151.76,151.71,3.2957]
[1727276467169,3.2947,151.77,151.7,14.23]
[1727276468074,6.59551086,151.77,151.73,3.2953]
[1727276468777,3.2948,151.76,151.73,3.2953]
[1727276469367,3.30081086,151.77,151.72,3.2956]
[1727276469564,3.30081086,151.77,151.68,14.23]
[1727276469565,14.23,151.77,151.68,14.23]
[1727276469871,17.55223613,151.77,151.68,14.23]
[1727276470375,17.55223613,151.77,151.71,3.2958]
[1727276470579,17.55223613,151.77,151.68,14.23]
[1727276470874,3.2952,151.75,151.71,3.2957]
[1727276471277,6.55151221,151.75,151.71,3.2957]
[1727276471478,3.2949,151.76,151.68,14.23]
[1727276471679,17.60256065,151.77,151.68,14.23]
[1727276472177,3.37256065,151.77,151.69,14.23]
[1727276472378,14.23,151.79,151.69,14.23]
[1727276472673,3.2947,151.77,151.69,14.23]
[1727276472878,3.32212552,151.77,151.69,14.23]
[1727276473075,3.2952,151.75,151.67,14.23]
[1727276473275,6.53656339,151.75,151.67,14.23]
[1727276473780,3.2949,151.76,151.67,14.23]
[1727276474276,3.2949,151.76,151.73,3.2954]
[1727276474578,3.295,151.75,151.67,14.23]
[1727276475580,6.63054471,151.76,151.67,14.23]
[1727276476079,14.23,151.78,151.73,3.2953]
[1727276476481,3.35839224,151.77,151.73,3.2953]
[1727276476675,3.35839224,151.77,151.67,14.23]
[1727276476971,14.23,151.8,151.69,14.23]
[1727276477177,14.23,151.8,151.71,14.23]
[1727276477377,14.23,151.8,151.72,1.3699]
[1727276478169,3.2944,151.78,151.74,3.2951]
[1727276478375,14.23,151.8,151.74,3.2951]
[1727276479980,2.7293,151.82,151.72,1.3699]
[1727276480185,16.9593,151.82,151.72,2.7708]
[1727276480876,14.23,151.8,151.72,2.7708]
[1727276481276,3.2946,151.78,151.75,3.2949]
[1727276481882,3.2946,151.77,151.74,3.2951]
[1727276482275,14.23,151.8,151.72,2.7708]
[1727276482473,14.23,151.78,151.67,14.23]
[1727276482677,14.23,151.76,151.68,1.3915]
[1727276482880,1.3682,151.82,151.74,14.23]
[1727276483180,3.30720725,151.85,151.78,14.23]
[1727276483376,14.23,151.86,151.78,14.23]
[1727276483578,17.5228,151.86,151.82,3.2933]
[1727276483884,3.27443908,151.85,151.82,3.2933]
[1727276484086,14.23,151.86,151.82,3.2933]
[1727276484281,3.34991762,151.85,151.81,3.2936]
[1727276484482,1.3652,151.89,151.81,3.2936]
[1727276484483,3.2336079,151.84,151.81,3.2936]
[1727276484779,14.23,151.86,151.81,3.2936]
[1727276485486,3.22570016,151.85,151.82,3.2933]
[1727276486182,1.3652,151.89,151.84,3.2931]
[1727276486575,3.2927,151.86,151.83,3.2931]
[1727276487578,1.3652,151.89,151.8,14.23]
[1727276488180,3.2924,151.87,151.83,3.2931]
[1727276488583,3.2924,151.87,151.84,3.2929]
[1727276488778,3.2922,151.88,151.8,14.23]
[1727276489184,3.2924,151.87,151.84,3.2929]
[1727276489379,14.23,151.9,151.81,1.3617]
[1727276489576,21.0515,151.92,151.78,14.23]
[1727276489777,14.23,151.86,151.81,3.2936]
[1727276489984,3.307966,151.85,151.81,3.2936]
[1727276490585,6.600966,151.85,151.82,3.2935]
[1727276491488,3.307966,151.85,151.77,1.3617]
[1727276491688,14.23,151.84,151.77,1.3617]
[1727276491987,6.55271917,151.83,151.8,3.2939]
[1727276494184,3.2935,151.82,151.79,3.294]
[1727276496190,3.2935,151.82,151.77,1.3617]
[1727276496191,3.2941,151.8,151.77,1.3617]
[1727276496393,14.23,151.82,151.72,14.23]
[1727276496591,15.5742,151.82,151.72,14.23]
[1727276496986,15.5742,151.82,151.75,3.295]
[1727276497290,15.5742,151.82,151.72,14.23]
[1727276498789,14.23,151.8,151.7,18.2345]
[1727276498987,1.3442,151.82,151.7,18.2345]
[1727276499186,14.23,151.79,151.7,18.2345]
[1727276500585,3.2947,151.77,151.73,3.2953]
[1727276500793,3.2947,151.77,151.7,18.2345]
[1727276500993,14.23,151.8,151.7,18.2345]
[1727276501696,3.2944,151.78,151.7,18.2345]
[1727276502089,3.2944,151.78,151.71,14.23]
[1727276502695,3.2944,151.78,151.74,3.2951]
[1727276502995,3.2944,151.78,151.71,14.23]
[1727276503892,3.2944,151.78,151.75,3.2949]
[1727276504199,3.2942,151.79,151.75,3.2949]
[1727276504592,15.5742,151.82,151.75,3.2949]
[1727276504893,3.2943,151.79,151.75,3.2949]
[1727276505300,3.2944,151.78,151.75,3.2949]
[1727276505907,15.5742,151.82,151.76,14.23]
[1727276505908,1.3442,151.82,151.76,14.23]
[1727276506501,3.2941,151.8,151.76,14.23]
[1727276506701,3.2941,151.8,151.74,14.23]
[1727276507903,3.294,151.8,151.74,14.23]
[1727276508503,3.294,151.8,151.77,3.2945]
[1727276508702,3.2938,151.81,151.77,3.2945]
[1727276509097,3.2936,151.82,151.76,14.23]
[1727276509604,3.2936,151.82,151.79,3.2941]
[1727276509912,3.25931917,151.83,151.77,14.23]
[1727276510108,14.23,151.87,151.77,14.23]